bitfinex/quotes_BTCUSD_20251114
["timestamp","ask_amount","ask_price","bid_price","bid_amount"]
[1763128382240,0.02806953,95326.0,95260.0,0.28808246]
[1763128382241,0.02622771,95319.0,95291.0,0.2098834]
[1763128382434,0.01019999,95330.0,95291.0,0.2098834]
[1763128382435,0.0013743,95292.0,95291.0,0.6440834]
[1763128382649,0.0002,95330.0,95303.0,0.20985698]
[1763128382852,0.06127641,95304.0,95303.0,0.20985698]
[1763128383070,0.0002,95330.0,95303.0,0.67548236]
[1763128383273,0.01954707,95321.0,95314.0,0.323]
[1763128383495,0.01954707,95320.0,95312.0,0.5831509]
[1763128383714,0.04577478,95319.0,95300.0,0.5831509]
[1763128383926,0.10479654,95301.0,95291.0,0.001]
[1763128384131,0.03623294,95300.0,95274.0,0.01097241]
[1763128384340,0.10479654,95275.0,95274.0,0.01097241]
[1763128384756,0.02623294,95300.0,95270.0,0.01049648]
[1763128384983,0.01955094,95299.0,95298.0,0.323]
[1763128385197,0.10479654,95322.0,95298.0,0.323]
[1763128385198,0.10479654,95322.0,95298.0,0.51177352]
[1763128385403,0.0732561,95307.0,95300.0,0.1112]
[1763128385625,0.1052509,95322.0,95305.0,0.323]
[1763128385834,0.1052509,95322.0,95312.0,0.5831509]
[1763128386056,0.1052509,95322.0,95313.0,0.53283496]
[1763128386267,0.1052509,95322.0,95313.0,0.323]
[1763128386493,0.1052509,95322.0,95312.0,0.5831509]
[1763128386494,0.00045436,95322.0,95321.0,0.53281735]
[1763128386701,0.00045436,95322.0,95321.0,0.323]
[1763128387518,0.00045436,95322.0,95321.0,0.53281735]
[1763128387943,0.0102,95330.0,95325.0,0.323]
[1763128388220,0.0102,95330.0,95325.0,0.53280687]
[1763128388221,0.00033625,95330.0,95325.0,0.53280687]
[1763128388381,0.00033625,95330.0,95321.0,0.21081735]
[1763128388382,0.00033625,95330.0,95322.0,0.53281515]
[1763128388589,0.00033625,95330.0,95321.0,0.21181735]
[1763128388590,0.00033625,95330.0,95329.0,0.323]
[1763128389480,0.01,95350.0,95339.0,0.20977561]
[1763128389713,0.01,95350.0,95340.0,0.79292423]
[1763128389917,0.0011,95360.0,95344.0,0.323]
[1763128389918,0.10479654,95345.0,95344.0,0.323]
[1763128390135,0.0011,95360.0,95344.0,0.323]
[1763128390136,0.0011,95360.0,95351.0,0.323]
[1763128390337,0.0011,95360.0,95350.0,0.323]
[1763128390543,0.0111,95360.0,95350.0,0.3231362]
[1763128390750,0.0011,95360.0,95350.0,0.2591362]
[1763128390954,0.0011,95360.0,95356.0,0.20973992]
[1763128391156,0.0011,95360.0,95350.0,0.2591362]
[1763128391362,0.0011,95360.0,95354.0,0.20974272]
[1763128391571,0.0011,95360.0,95358.0,0.20973594]
[1763128391980,0.10479654,95359.0,95350.0,0.5001362]
[1763128392177,0.10479654,95359.0,95350.0,0.0001362]
[1763128392382,0.10479654,95359.0,95350.0,0.0021362]
[1763128392824,0.10479654,95359.0,95350.0,0.0011362]
[1763128393029,0.10479654,95359.0,95357.0,0.20973808]
[1763128393344,0.00489655,95372.0,95366.0,0.2097177]
[1763128393515,0.10479654,95358.0,95355.0,0.20974067]
[1763128393725,0.10479654,95358.0,95357.0,0.20973814]
[1763128393927,0.10479654,95358.0,95350.0,0.0011362]
[1763128394468,0.10479654,95358.0,95350.0,0.0001362]
[1763128394866,0.02621726,95357.0,95350.0,0.0011362]
[1763128395184,0.02621726,95357.0,95350.0,0.0001362]
[1763128395386,0.10479654,95358.0,95350.0,0.0001362]
[1763128395595,0.00161949,95351.0,95350.0,0.0001362]
[1763128396845,0.00161949,95351.0,95350.0,0.20988973]
[1763128397087,0.00161949,95351.0,95350.0,0.0001362]
[1763128397972,0.00489655,95372.0,95350.0,0.3231362]
[1763128398180,0.00489655,95372.0,95371.0,0.48570735]
[1763128399066,0.01,95400.0,95382.0,0.323]
[1763128399293,0.0002,95420.0,95407.0,0.20962764]
[1763128399294,0.01999999,95410.0,95407.0,0.20962764]
[1763128399535,0.00999999,95400.0,95346.0,0.10479654]
[1763128399756,0.00999999,95400.0,95270.0,1.77526386]
[1763128399757,0.00999999,95400.0,95386.0,0.2096743]
[1763128399759,0.00999999,95390.0,95386.0,0.2096743]
[1763128399977,0.00999999,95390.0,95389.0,0.20966778]
[1763128400209,0.02013621,95390.0,95371.0,0.001]
[1763128400432,0.04341874,95381.0,95378.0,0.20969196]
[1763128400648,0.323,95381.0,95378.0,0.20969196]
[1763128400888,0.02013621,95390.0,95371.0,0.001]
[1763128400889,0.00013623,95390.0,95389.0,0.20966778]
[1763128401309,0.00013623,95390.0,95389.0,0.28729309]
[1763128401530,0.00013623,95390.0,95389.0,0.28829309]
[1763128401738,0.00999999,95400.0,95399.0,0.2096458]
[1763128401952,0.00999999,95410.0,95390.0,0.91412381]
[1763128402161,0.0002,95420.0,95419.0,0.20960186]
[1763128402371,0.0002,95420.0,95390.0,0.01048327]
[1763128402372,0.00065391,95420.0,95418.0,0.2096032]
[1763128402602,0.00999999,95430.0,95418.0,0.2096032]
[1763128402822,0.00999999,95420.0,95411.0,0.314006]
[1763128403034,0.00999999,95420.0,95410.0,0.01048108]
[1763128403035,0.00013612,95430.0,95410.0,0.35746966]
[1763128403260,0.00013612,95430.0,95429.0,0.20957989]
[1763128403526,0.00999999,95430.0,95411.0,0.262636]
[1763128403727,0.00999999,95430.0,95411.0,0.11251]
[1763128403940,0.01999998,95430.0,95410.0,0.01048108]
[1763128404145,0.0002,95440.0,95410.0,0.01048108]
[1763128404146,0.02019998,95440.0,95426.0,0.20958432]
[1763128404348,0.04341874,95439.0,95430.0,0.53349211]
[1763128404556,0.04341874,95439.0,95430.0,0.00045391]
[1763128404557,0.04341874,95437.0,95430.0,0.00045391]
[1763128404769,0.04561214,95431.0,95430.0,0.00045391]
[1763128405413,0.01999998,95430.0,95421.0,0.07721958]
[1763128405627,0.04341874,95429.0,95421.0,0.53349211]
[1763128405862,1.2602,95440.0,95439.0,0.20955793]
[1763128406082,1.2602,95440.0,95421.0,0.6101325]
[1763128406083,1.2602,95440.0,95437.0,0.20956083]
[1763128406295,1.2602,95440.0,95430.0,0.53349211]
[1763128406512,0.10479654,95434.0,95431.0,0.2095755]
[1763128406715,0.01999998,95430.0,95428.0,0.20958096]
[1763128406891,0.00999999,95430.0,95428.0,0.20958096]
[1763128407171,0.04341874,95433.0,95432.0,0.2095733]
[1763128407398,1.2602,95440.0,95439.0,0.20955793]
[1763128407568,1.2602,95440.0,95439.0,0.53255793]
[1763128407712,1.22871679,95440.0,95439.0,0.54350449]
[1763128407910,1.19723358,95440.0,95439.0,0.54350449]
[1763128408287,1.13426716,95440.0,95439.0,1.03703849]
[1763128408493,1.10278395,95440.0,95439.0,1.03703849]
[1763128408723,1.07130074,95440.0,95439.0,1.03803849]
[1763128408948,1.03981753,95440.0,95439.0,0.84272809]
[1763128409140,1.00833432,95440.0,95439.0,0.74620149]
[1763128409317,0.15569061,95440.0,95439.0,0.74620149]
[1763128409523,0.10479654,95498.0,95489.0,0.2094482]
[1763128409724,0.00999999,95490.0,95489.0,0.2094482]
[1763128409901,0.00999999,95490.0,95474.0,0.323]
[1763128410107,0.01999998,95490.0,95488.0,0.20944909]
[1763128410321,0.00999999,95490.0,95488.0,0.20944909]
[1763128410524,0.00013609,95498.0,95497.0,0.20943066]
[1763128410722,0.00013609,95498.0,95492.0,0.323]
[1763128410975,0.00013609,95498.0,95496.0,0.323]
[1763128411182,0.00013609,95498.0,95490.0,0.20944601]
[1763128411395,0.04341874,95489.0,95488.0,0.323]
[1763128411632,0.00013609,95498.0,95496.0,0.20943285]
[1763128412259,0.04355483,95498.0,95496.0,0.21043285]
[1763128412478,0.04355483,95498.0,95497.0,0.323]
[1763128412698,0.04355483,95498.0,95497.0,0.26]
[1763128412903,0.00013609,95498.0,95497.0,0.26]
[1763128413520,10.0,95500.0,95498.0,0.20942846]
[1763128413760,9.96853458,95500.0,95499.0,0.752919]
[1763128413979,9.96853458,95500.0,95498.0,0.20942846]
[1763128414189,0.10479654,95499.0,95498.0,0.20942846]
[1763128414615,0.10479654,95499.0,95498.0,0.53242846]
[1763128414821,0.14821528,95499.0,95498.0,0.323]
[1763128415471,0.04341874,95479.0,95463.0,0.31425751]
[1763128415678,0.04341874,95479.0,95478.0,0.20947233]
[1763128416649,0.04341874,95479.0,95470.0,0.22009992]
[1763128416867,0.06960278,95478.0,95477.0,0.20947352]
[1763128417085,20.55349209,95490.0,95476.0,0.20947672]
[1763128417086,0.04341874,95477.0,95476.0,0.20947672]
[1763128417291,20.37309213,95490.0,95470.0,0.01061058]
[1763128417514,0.02577674,95489.0,95470.0,0.01061058]
[1763128417781,0.10479654,95471.0,95470.0,0.00013609]
[1763128418000,0.10479654,95471.0,95450.0,0.01047668]
[1763128418223,0.10479654,95471.0,95445.0,0.08017283]
[1763128418224,0.10479654,95451.0,95445.0,0.08017283]
[1763128418895,0.10479654,95451.0,95441.0,0.323]
[1763128419139,0.10479654,95451.0,95439.0,0.04799]
[1763128419140,0.63828865,95451.0,95439.0,0.04799]
[1763128419352,0.05341874,95440.0,95439.0,0.04799]
[1763128419570,0.14821528,95451.0,95450.0,0.25752378]
[1763128420003,0.14821528,95451.0,95450.0,0.50752378]
[1763128420465,0.10479654,95451.0,95450.0,0.50752378]
[1763128421122,0.10579654,95451.0,95450.0,0.323]
[1763128421544,0.10479654,95451.0,95450.0,0.323]
[1763128422190,0.10479654,95471.0,95470.0,0.20948989]
[1763128422410,0.10493248,95471.0,95470.0,0.20948989]
[1763128422853,0.00342466,95471.0,95470.0,0.53248989]
[1763128423539,0.00342466,95471.0,95470.0,0.78330789]
[1763128424356,19.83960002,95490.0,95489.0,0.5324482]
[1763128424540,19.83960002,95490.0,95489.0,0.5927582]
[1763128424997,19.8401203,95490.0,95482.0,0.20945917]
[1763128425303,19.8401203,95490.0,95470.0,0.09783]
[1763128425304,19.83960002,95490.0,95489.0,0.2697582]
[1763128425698,19.83960002,95490.0,95489.0,2.5324482]
[1763128425911,19.83960002,95490.0,95489.0,2.3744252]
[1763128426126,19.83960002,95490.0,95489.0,0.61315211]
[1763128426328,19.83960002,95490.0,95489.0,0.5334482]
[1763128426659,19.83960002,95490.0,95489.0,0.5344482]
[1763128426879,19.83960002,95490.0,95489.0,0.5334482]
[1763128427080,19.83960002,95490.0,95489.0,0.4554482]
[1763128427684,19.83960002,95490.0,95489.0,1.2648702]
[1763128427890,19.80813354,95490.0,95489.0,1.2658702]
[1763128428120,19.26676019,95490.0,95489.0,1.3261802]
[1763128428476,19.26676019,95490.0,95489.0,1.3251802]
[1763128428477,19.23529371,95490.0,95489.0,1.3251802]
[1763128428678,19.20382723,95490.0,95489.0,1.2648702]
[1763128428882,19.17236075,95490.0,95489.0,1.2910159]
[1763128429145,19.17236075,95490.0,95489.0,0.4564482]
[1763128429146,19.14089427,95490.0,95489.0,0.4564482]
[1763128429642,19.14089427,95490.0,95489.0,0.1334482]
[1763128429880,19.14089427,95490.0,95489.0,0.1324482]
[1763128430137,19.14089427,95490.0,95489.0,0.1334482]
[1763128430399,39.14089427,95490.0,95489.0,0.001]
[1763128430680,39.20652301,95490.0,95489.0,0.001]
[1763128430874,0.04341874,95489.0,95487.0,0.20945143]
[1763128431083,0.04341874,95487.0,95471.0,0.323]
[1763128431310,0.04341874,95487.0,95460.0,0.01047559]
[1763128431311,0.02221,95471.0,95460.0,0.01047559]
[1763128431533,0.02221,95461.0,95460.0,0.00013594]
[1763128431755,0.06562874,95461.0,95460.0,0.00013594]
[1763128432028,0.06562874,95461.0,95460.0,0.20964777]
[1763128432232,0.06562874,95461.0,95430.0,0.54397099]
[1763128432233,0.05341874,95460.0,95430.0,0.54397099]
[1763128432453,0.07562471,95460.0,95459.0,0.20951403]
[1763128432666,0.0730569,95460.0,95459.0,0.20951403]
[1763128432873,0.0951269,95460.0,95456.0,0.20951925]
[1763128433084,0.04341874,95456.0,95450.0,0.20953307]
[1763128433317,0.04341874,95454.0,95453.0,0.20952676]
[1763128433739,0.06548874,95454.0,95453.0,0.20952676]
[1763128433956,0.04341874,95453.0,95451.0,0.20953073]
[1763128434164,0.06548874,95453.0,95451.0,0.20953073]
[1763128434370,0.06548874,95452.0,95451.0,0.17153073]
[1763128435222,0.06548874,95452.0,95442.0,0.00123508]
[1763128435426,0.06548874,95443.0,95442.0,0.21078643]
[1763128436109,0.06548874,95443.0,95442.0,0.00123508]
[1763128436331,0.04341874,95442.0,95433.0,0.20957051]
[1763128436539,0.14821528,95434.0,95433.0,0.20957051]
[1763128436743,0.17028528,95434.0,95433.0,0.20957051]
[1763128437195,0.17028528,95434.0,95405.0,0.41926383]
[1763128437196,0.04341874,95433.0,95410.0,0.53349211]
[1763128437409,0.04341874,95432.0,95431.0,0.20957338]
[1763128437835,0.08755874,95432.0,95431.0,0.20957338]
[1763128438470,0.06548874,95432.0,95431.0,0.20957338]
[1763128438679,0.10479654,95434.0,95431.0,0.20957338]
[1763128438680,0.14821528,95434.0,95433.0,0.20957111]
[1763128438885,0.14797428,95434.0,95432.0,0.20957203]
[1763128439094,0.02207,95433.0,95432.0,0.20957203]
[1763128439502,0.14797428,95434.0,95432.0,0.20957203]
[1763128440186,0.06548874,95433.0,95432.0,0.20957203]
[1763128440401,0.06548874,95433.0,95432.0,0.2095733]
[1763128440610,0.10479654,95457.0,95456.0,0.20952061]
[1763128440823,0.1242973,95457.0,95456.0,0.20952061]
[1763128441042,0.00013597,95460.0,95456.0,0.20952061]
[1763128441043,0.00013597,95460.0,95459.0,0.20951403]
[1763128441241,0.00013597,95460.0,95459.0,2.20951403]
[1763128441454,0.00013597,95460.0,95459.0,0.20951403]
[1763128441665,0.00013597,95460.0,95459.0,0.13151403]
[1763128442092,0.00013597,95460.0,95459.0,0.15246543]
[1763128442322,0.00013597,95460.0,95459.0,2.13251403]
[1763128442535,0.00013597,95460.0,95459.0,2.45551403]
[1763128442750,0.00013597,95460.0,95459.0,0.13251403]
[1763128443177,0.00013597,95460.0,95459.0,0.13351403]
[1763128443391,0.00013597,95460.0,95459.0,0.002]
[1763128443626,0.02220597,95460.0,95459.0,0.001]
[1763128443851,0.06562471,95460.0,95459.0,0.001]
[1763128444080,0.03208973,95460.0,95434.0,0.20956891]
[1763128444300,0.10479654,95435.0,95434.0,0.20956891]
[1763128445011,0.10479654,95435.0,95433.0,0.20981559]
[1763128445012,0.04341874,95434.0,95433.0,0.00024668]
[1763128445227,0.04920874,95434.0,95433.0,0.00024668]
[1763128445874,0.04920874,95434.0,95410.0,0.22010173]
[1763128446091,0.17028528,95411.0,95410.0,0.22010271]
[1763128446510,0.14821528,95411.0,95410.0,0.22010271]
[1763128447424,0.17028528,95411.0,95410.0,0.00045355]
[1763128447837,0.14821528,95411.0,95410.0,0.00045355]
[1763128449119,0.17028528,95411.0,95410.0,0.00045355]
[1763128449341,0.04341874,95410.0,95390.0,0.01048327]
[1763128449559,0.10479654,95391.0,95390.0,0.01061939]
[1763128449768,0.14821528,95391.0,95390.0,0.2202834]
[1763128450010,0.17028528,95391.0,95390.0,0.00013612]
[1763128450228,0.00479654,95411.0,95410.0,0.20962163]
[1763128450229,0.04821528,95411.0,95410.0,0.20962163]
[1763128450443,0.05021528,95411.0,95410.0,0.20962163]
[1763128450661,0.04821528,95411.0,95410.0,0.20962163]
[1763128451573,0.04341874,95399.0,95390.0,0.01061939]
[1763128451807,0.04341874,95399.0,95398.0,0.209648]
[1763128452236,0.04341874,95399.0,95398.0,0.21060761]
[1763128452455,0.04341874,95399.0,95398.0,0.00095961]
[1763128452456,0.06548874,95399.0,95398.0,0.00095961]
[1763128452918,0.06648874,95399.0,95398.0,0.00095961]
[1763128453129,0.04441874,95399.0,95398.0,0.00095961]
[1763128453581,0.06648874,95399.0,95398.0,0.00095961]
[1763128453792,0.04341874,95406.0,95398.0,0.00095961]
[1763128454008,0.05265427,95406.0,95390.0,0.00013612]
[1763128454213,0.14821528,95391.0,95390.0,0.00013612]
[1763128454631,0.14821528,95391.0,95390.0,0.00131517]
[1763128455061,0.14821528,95391.0,95390.0,0.21098075]
[1763128456336,0.01,95380.0,95370.0,0.01088547]
[1763128456560,0.01,95380.0,95378.0,0.20969196]
[1763128456561,0.04341874,95379.0,95378.0,0.20969196]
[1763128457538,0.01,95380.0,95378.0,0.20969196]
[1763128457907,0.05341874,95390.0,95389.0,0.20966778]
[1763128458335,0.01,95390.0,95389.0,0.20966778]
[1763128458519,0.10479654,95391.0,95389.0,0.20966778]
[1763128459142,0.10479654,95391.0,95390.0,0.04609]
[1763128460259,0.10479654,95391.0,95390.0,0.05372941]
[1763128460465,0.10479654,95391.0,95389.0,0.20966778]
[1763128460466,0.14821528,95391.0,95389.0,0.20966778]
[1763128460658,0.04341874,95390.0,95389.0,0.20966778]
[1763128461212,0.04341874,95390.0,95388.0,0.20966926]
[1763128462512,0.14821528,95391.0,95390.0,0.20966558]
[1763128463618,0.10479654,95391.0,95390.0,0.20966558]
[1763128464891,0.02620325,95408.0,95407.0,0.20962822]
[1763128465095,0.00479654,95411.0,95407.0,0.20962822]
[1763128465096,0.01,95410.0,95408.0,0.20962602]
[1763128465326,0.01,95410.0,95400.0,0.04609]
[1763128465327,0.04341874,95409.0,95400.0,0.04609]
[1763128465535,0.03199325,95408.0,95392.0,0.04609]
[1763128465755,0.10479654,95393.0,95392.0,0.04609]
[1763128465977,0.10479654,95393.0,95392.0,0.25574898]
[1763128466204,0.14821528,95393.0,95392.0,0.25574898]
[1763128466416,0.04341874,95392.0,95387.0,0.20967217]
[1763128466642,0.01,95390.0,95381.0,0.00024685]
[1763128466841,0.04341874,95392.0,95381.0,0.00024685]
[1763128466842,0.04341874,95388.0,95385.0,0.20967558]
[1763128467060,0.06962748,95388.0,95386.0,0.20967252]
[1763128467268,0.10479654,95393.0,95382.0,0.20968316]
[1763128467269,0.04341874,95391.0,95382.0,0.20968316]
[1763128467476,0.04341874,95391.0,95382.0,0.20968225]
[1763128467477,0.02304579,95390.0,95382.0,0.20968225]
[1763128467691,0.02429025,95389.0,95388.0,0.20966876]
[1763128467927,0.02250744,95391.0,95390.0,0.20966558]
[1763128468156,0.06592618,95391.0,95390.0,0.20966558]
[1763128468377,0.04341874,95391.0,95390.0,0.20966558]
[1763128469246,0.10479654,95393.0,95389.0,0.20966778]
[1763128469461,0.001,95391.0,95390.0,0.20966558]
[1763128469674,0.06672546,95392.0,95390.0,0.20966558]
[1763128470106,0.001,95391.0,95390.0,0.20966558]
[1763128471224,0.10479654,95393.0,95392.0,0.20966118]
[1763128472084,0.10479654,95393.0,95390.0,0.20966558]
[1763128472085,0.04341874,95392.0,95390.0,0.001]
[1763128472292,0.04341874,95390.0,95371.0,0.09765]
[1763128472499,0.06197402,95390.0,95374.0,0.20970042]
[1763128472717,0.07197402,95390.0,95386.0,0.20967386]
[1763128472929,0.07962693,95390.0,95387.0,0.2096717]
[1763128473137,0.06962693,95390.0,95388.0,0.20966911]
[1763128473337,0.02137855,95390.0,95388.0,0.20966911]
[1763128473543,0.02137855,95390.0,95388.0,0.2096683]
[1763128473945,0.03137855,95390.0,95388.0,0.2096683]
[1763128474161,0.02137855,95390.0,95388.0,0.2096683]
[1763128474384,0.04341874,95392.0,95388.0,0.2096683]
[1763128474385,0.10479654,95389.0,95388.0,0.2096683]
[1763128475880,0.10479654,95389.0,95388.0,0.2106683]
[1763128476298,0.10479654,95389.0,95388.0,0.2116683]
[1763128477147,0.10479654,95389.0,95388.0,0.2106683]
[1763128477786,0.10479654,95389.0,95388.0,0.2116683]
[1763128477989,0.14821528,95389.0,95388.0,0.2106683]
[1763128478261,0.04341874,95388.0,95384.0,0.20967667]
[1763128478463,0.04341874,95388.0,95381.0,0.00024685]
[1763128478464,0.04341874,95388.0,95386.0,0.20967369]
[1763128478676,0.06306094,95387.0,95386.0,0.20967369]
[1763128479237,0.04341874,95387.0,95386.0,0.20967369]
[1763128479446,0.04341874,95387.0,95385.0,0.20967411]
[1763128479447,0.0165536,95399.0,95398.0,0.209648]
[1763128479600,0.06306125,95399.0,95398.0,0.152648]
[1763128480007,0.01964251,95399.0,95398.0,0.152648]
[1763128480408,0.02620242,95411.0,95410.0,0.20962163]
[1763128480639,0.01964042,95411.0,95410.0,0.20962163]
[1763128480849,0.01964042,95411.0,95401.0,0.04908]
[1763128481055,0.06305916,95410.0,95409.0,0.20962317]
[1763128481476,0.02964042,95410.0,95409.0,0.20962317]
[1763128481701,0.02963904,95410.0,95401.0,0.04908]
[1763128481948,0.08926075,95409.0,95408.0,0.20962453]
[1763128482156,0.01963904,95409.0,95408.0,0.20962453]
[1763128483231,0.01,95410.0,95408.0,0.20962453]
[1763128483456,0.01,95410.0,95409.0,0.09765]
[1763128484531,0.02619391,95442.0,95433.0,0.20957111]
[1763128484735,0.07286384,95434.0,95433.0,0.20957111]
[1763128484943,0.0294451,95434.0,95433.0,0.20957111]
[1763128485616,0.0294451,95434.0,95425.0,0.09765]
[1763128485846,0.0294451,95434.0,95408.0,0.01219609]
[1763128485847,0.02207,95426.0,95401.0,0.14673]
[1763128486063,0.00988376,95430.0,95380.0,0.79382745]
[1763128486064,0.04341874,95401.0,95388.0,0.30731819]
[1763128486286,0.14821528,95402.0,95382.0,0.20968316]
[1763128486287,0.04341874,95399.0,95382.0,0.20968316]
[1763128486496,0.04341874,95399.0,95378.0,0.20969009]
[1763128486497,0.06962446,95399.0,95378.0,0.20969009]
[1763128486705,0.06962446,95399.0,95380.0,0.20968569]
[1763128486908,0.04341874,95381.0,95380.0,0.20968691]
[1763128487141,0.04341874,95381.0,95380.0,0.20982314]
[1763128487767,0.10479654,95382.0,95380.0,0.37291314]
[1763128487980,0.10479654,95382.0,95380.0,0.20982314]
[1763128488420,0.10479654,95382.0,95380.0,0.21082314]
[1763128488632,0.10479654,95382.0,95380.0,0.21182314]
[1763128489058,0.01,95390.0,95381.0,0.09765]
[1763128489287,0.01,95390.0,95389.0,0.27510778]
[1763128489500,0.01,95390.0,95389.0,0.20966778]
[1763128490541,0.011,95390.0,95389.0,0.20966778]
[1763128491234,0.01,95390.0,95389.0,0.20966778]
[1763128493357,0.14821528,95401.0,95400.0,0.2096436]
[1763128494452,0.14821528,95401.0,95400.0,0.1366436]
[1763128494654,0.10679654,95401.0,95400.0,0.1366436]
[1763128495819,0.10579654,95401.0,95400.0,0.1366436]
[1763128496403,0.10579654,95401.0,95400.0,0.4596436]
[1763128496404,0.001,95401.0,95400.0,0.4596436]
[1763128496603,0.001,95401.0,95398.0,0.04908]
[1763128496604,0.00794812,95415.0,95409.0,0.11452]
[1763128496945,0.00958798,95416.0,95414.0,0.20961284]
[1763128497105,0.02588,95422.0,95414.0,0.20961284]
[1763128497325,0.04341874,95416.0,95389.0,0.09765]
[1763128497669,0.04341874,95398.0,95391.0,0.20966338]
[1763128497868,0.04341874,95398.0,95391.0,0.00013623]
[1763128497999,0.04341874,95398.0,95392.0,0.20966075]
[1763128498406,0.04341874,95398.0,95393.0,0.20965794]
[1763128498627,0.04341874,95398.0,95391.0,0.2097984]
[1763128498859,0.04341874,95398.0,95397.0,0.20965019]
[1763128499092,0.06962474,95398.0,95397.0,0.20965019]
[1763128499888,0.07062474,95398.0,95397.0,0.20965019]
[1763128500088,0.04441874,95398.0,95397.0,0.20965019]
[1763128500325,0.10479654,95399.0,95391.0,0.00013623]
[1763128500539,0.07062474,95398.0,95396.0,0.20965204]
[1763128500816,0.07162474,95398.0,95396.0,0.20965204]
[1763128501000,0.07062474,95398.0,95396.0,0.20965204]
[1763128501205,0.07162474,95398.0,95396.0,0.20965204]
[1763128501430,0.07062474,95398.0,95396.0,0.20965204]
[1763128501641,0.07062474,95398.0,95397.0,0.20965019]
[1763128501848,0.04541874,95398.0,95397.0,0.13765019]
[1763128502087,0.12012474,95398.0,95391.0,0.00013623]
[1763128502299,0.04341874,95396.0,95391.0,0.00013623]
[1763128502535,0.04341874,95394.0,95391.0,0.00013623]
[1763128502782,0.0505,95398.0,95391.0,0.00013623]
[1763128502783,0.04341874,95392.0,95391.0,0.00013623]
[1763128503015,0.07011638,95392.0,95391.0,0.00013623]
[1763128503461,0.06962638,95392.0,95391.0,0.20979961]
[1763128503673,0.002,95398.0,95391.0,0.00013623]
[1763128503674,0.04341874,95397.0,95391.0,0.00013623]
[1763128503886,0.09291874,95392.0,95391.0,0.00013623]
[1763128504104,0.12112638,95392.0,95391.0,0.00013623]
[1763128504312,0.14075312,95392.0,95391.0,0.00013623]
[1763128504524,0.04541874,95392.0,95391.0,0.20979961]
[1763128504943,0.04441874,95392.0,95391.0,0.20983961]
[1763128505146,0.04441874,95392.0,95391.0,0.00017623]
[1763128505363,0.07062638,95392.0,95391.0,0.00017623]
[1763128505568,0.07062638,95392.0,95391.0,0.00021623]
[1763128505776,0.06962638,95392.0,95391.0,0.00021623]
[1763128506200,0.06962638,95392.0,95391.0,0.20987961]
[1763128506422,0.06962638,95392.0,95391.0,0.20991961]
[1763128506638,0.026206,95398.0,95396.0,0.20965239]
[1763128506846,0.10479654,95399.0,95398.0,0.209648]
[1763128507257,0.14821528,95399.0,95398.0,0.209648]
[1763128507923,0.04341874,95398.0,95391.0,0.00025623]
[1763128508131,0.04341874,95396.0,95391.0,0.00025623]
[1763128508332,0.00049,95398.0,95391.0,0.00025623]
[1763128508333,0.04341874,95394.0,95391.0,0.00025623]
[1763128508579,0.04390874,95392.0,95391.0,0.00025623]
[1763128508775,0.07011638,95392.0,95391.0,0.00025623]
[1763128509022,0.07011638,95392.0,95372.0,0.0002469]
[1763128509237,0.04341874,95390.0,95387.0,0.2096717]
[1763128509436,0.04341874,95390.0,95389.0,0.20966778]
[1763128509664,0.00062595,95392.0,95379.0,0.20968866]
[1763128509879,0.00013595,95392.0,95372.0,0.0002469]
[1763128510095,0.00988376,95390.0,95372.0,0.0002469]
[1763128510308,0.06739874,95373.0,95372.0,0.0002469]
[1763128510521,0.17219528,95373.0,95372.0,0.0002469]
[1763128511571,0.17219528,95373.0,95372.0,0.20995205]
[1763128511572,0.14821528,95373.0,95372.0,0.20995205]
[1763128511800,0.10479654,95373.0,95372.0,0.20995205]
[1763128512010,0.02720819,95390.0,95389.0,0.20966778]
[1763128512231,0.02720819,95390.0,95389.0,0.27349778]
[1763128512463,0.02620819,95390.0,95389.0,0.20966778]
[1763128512692,0.00213595,95392.0,95391.0,0.20966338]
[1763128512903,0.00013595,95392.0,95391.0,0.20966338]
[1763128513965,0.00013595,95392.0,95391.0,0.21066338]
[1763128514547,0.00013595,95392.0,95391.0,0.20966338]
[1763128514777,0.00013595,95392.0,95391.0,0.21066338]
[1763128515189,0.00013595,95392.0,95391.0,0.53366338]
[1763128515420,0.09,95410.0,95409.0,0.20962383]
[1763128515653,0.10479654,95434.0,95433.0,0.53257111]
[1763128515884,0.01,95450.0,95448.0,0.20953817]
[1763128516185,0.10479654,95452.0,95442.0,0.11373]
[1763128516186,0.01,95470.0,95468.0,0.20949428]
[1763128516303,0.01,95470.0,95468.0,0.14349428]
[1763128516539,0.01,95470.0,95449.0,0.323]
[1763128516540,0.10525102,95469.0,95442.0,0.0499]
[1763128516767,0.01,95460.0,95459.0,0.20951403]
[1763128516995,0.01,95460.0,95455.0,0.20952128]
[1763128517237,0.01,95460.0,95411.0,0.09343498]
[1763128517238,0.04341874,95439.0,95427.0,0.09337]
[1763128517464,0.10479654,95469.0,95456.0,0.20952061]
[1763128517692,0.15429654,95469.0,95468.0,0.001]
[1763128517942,39.14109427,95490.0,95468.0,0.06012]
[1763128518165,39.14109427,95490.0,95484.0,0.323]
[1763128518395,39.14109427,95490.0,95483.0,0.11373]
[1763128518396,39.14154875,95490.0,95489.0,0.2732782]
[1763128518618,39.14154875,95490.0,95487.0,0.20945075]
[1763128518619,39.14154875,95490.0,95488.0,0.20945004]
[1763128519069,39.15154875,95490.0,95488.0,0.30282004]
[1763128519289,39.14154875,95490.0,95489.0,0.41637]
[1763128519522,38.53785254,95490.0,95489.0,2.4802]
[1763128519744,38.36650766,95490.0,95489.0,2.323]
[1763128519968,38.33504278,95490.0,95489.0,2.323]
[1763128520205,37.81229653,95490.0,95489.0,2.323]
[1763128520438,37.78083165,95490.0,95489.0,2.34816615]
[1763128520683,37.78083165,95490.0,95489.0,2.323]
[1763128520684,37.26285203,95490.0,95489.0,2.323]
[1763128520928,36.83410966,95490.0,95489.0,2.34991466]
[1763128521151,36.7711799,95490.0,95489.0,2.38116992]
[1763128521367,35.9401335,95490.0,95489.0,2.38116992]
[1763128521587,35.20110533,95490.0,95489.0,2.42258866]
[1763128521830,30.81195931,95490.0,95489.0,0.5953004]
[1763128522071,23.38923039,95490.0,95489.0,1.00676785]
[1763128522283,20.85121712,95490.0,95489.0,0.98209865]
[1763128522528,16.19982283,95490.0,95489.0,1.07365048]
[1763128522770,10.91056793,95490.0,95489.0,1.0877874]
[1763128523006,6.68917571,95490.0,95489.0,0.78958048]
[1763128523248,4.05764579,95490.0,95489.0,0.75488875]
[1763128523469,4.05764579,95490.0,95489.0,2.04341874]
[1763128523470,3.46665999,95490.0,95489.0,2.04341874]
[1763128523680,3.46665999,95490.0,95489.0,2.0]
[1763128523681,3.30420705,95490.0,95489.0,2.0]
[1763128523924,0.15273987,95490.0,95489.0,0.04757912]
[1763128524150,8.70526359,95500.0,95499.0,0.57584501]
[1763128524368,6.34807881,95500.0,95499.0,0.57584501]